Cogmind - Beta 16 @@@ ROGUE MODE // 2026.01.20 @ 16:51:41 Player: teh_pwnerer Result: Smashed by cave-in Performance ------------- Evolutions (0) 0 Regions Visited (1) 200 Robots Destroyed (12) 60 Value Destroyed (278) 278 Prototype IDs (0) 0 Alien Tech Used (0) 0 Bonus (0) 0 TOTAL SCORE: 538 Bonus ------- None Cogmind --------- Core Integrity 0/250 Matter 161/300 Energy 78/100 System Corruption 12% Temperature Warm (151) Movement Core (100) Ox1 Location -10/Materials Parts ------- > --- POWER (1) -------- (None) > --- PROPULSION (2) --- (None) > --- UTILITY (2) ------ Light Armor Plating > --- WEAPON (2) ------- Beam Cannon > --- INVENTORY (5) ---- Light Ion Engine EM Pulse Gun Medium Laser Small Laser Peak State ------------ > --- POWER ------------ Light Ion Engine > --- PROPULSION ------- Light Treads Light Treads > --- UTILITY ---------- Improved Terrain Scanner Seismic Detector > --- WEAPON ----------- Medium Laser Light Assault Rifle > --- INVENTORY -------- Light Ion Engine EM Pulse Gun [Rating: 9] Favorites ----------- Power Light Ion Engine Engine Light Ion Engine Propulsion Light Treads Treads Light Treads Leg Aluminum Leg Utility Seismic Detector Device Seismic Detector Protection Light Armor Plating Weapon Light Assault Rifle Energy Gun Medium Laser Energy Cannon Beam Cannon Ballistic Gun Light Assault Rifle Special Weapon Mining Laser Build | -11 -10 ------- Run | Yrd Mat Slots Evolved . | . . Power . | . . Propulsion . | . . Utility . | . . Weapon . | . . Parts Attached 18 | 8 10 Power 3 | 1 2 Engine 3 | 1 2 Core . | . . Reactor . | . . Propulsion 3 | 2 1 Treads 2 | 2 . Leg 1 | . 1 Wheel . | . . Hover . | . . Flight . | . . Utility 4 | 2 2 Device 3 | 2 1 Storage . | . . Processor . | . . Hackware . | . . Protection 1 | . 1 Artifact . | . . Weapon 8 | 3 5 Energy Gun 3 | 2 1 Energy Cannon 1 | . 1 Ballistic Gun 2 | 1 1 Ballistic Cannon . | . . Launcher . | . . Special Weapon 2 | . 2 Impact Weapon . | . . Slashing Weapon . | . . Piercing Weapon . | . . Special Melee Weapon . | . . Unidentified Prototypes . | . . Parts Lost 8 | . 8 Power 1 | . 1 Propulsion 3 | . 3 Utility 2 | . 2 Weapon 2 | . 2 Highest Loss Streak 4 | . 4 To Critical Strikes . | . . Average Backups 4 | 2 4 Power . | . 1 Propulsion . | . . Utility . | . . Weapon 2 | . 3 Tool/Special . | . . Unused Backups 4 | . 4 Power 1 | . 1 Propulsion 2 | . 2 Utility . | . . Weapon . | . . Tool/Special 1 | . 1 Average Slot Usage (%) 94 | . 94 Engine 14 | . 14 Treads 24 | . 24 Device 25 | . 25 Protection 1 | . 1 Energy Gun 9 | . 9 Energy Cannon 1 | . 1 Ballistic Gun 10 | . 10 Special Weapon 5 | . 5 Peak Build Rating 9 | 9 9 Average Rating 6 | 6 6 On Entrance 4 | . 9 Avg Prop Armor Cover (%) . | . . Naked Turns . | . . Heaviest Build 13 | 8 13 Greatest Support 40 | 40 40 Greatest Overweight (x) 4 | . 4 Average Overweight (x) . | . . Largest Inventory Capacity 5 | 5 5 Average Capacity 5 | 5 5 Most Carried 5 | 4 5 Average Carried 4 | 2 4 Final Capacity 5 | 5 5 Final Carried 4 | 4 4 Class Distribution -------------------- 100% | Mutant Dominant Class ---------------- Mutant | -10/Materials Resources | -11 -10 ----------- Run | Yrd Mat Matter Collected 268 | 93 175 Remotely . | . . Salvage Created 309 | 66 243 Parts 21 | 6 15 Haulers Intercepted . | . . Recyclers Shooed . | . . Parts Field Recycled . | . . Retrieved Matter . | . . Parts Self-Destructed . | . . Prevented . | . . Parts Restored . | . . Kills | -11 -10 ------- Run | Yrd Mat Combat Hostiles Destroyed 9 | . 9 Guns 7 | . 7 Cannons 1 | . 1 AOE 1 | . 1 Classes Destroyed 3 | 1 2 Tunneler 3 | 3 . Swarmer 3 | . 3 Grunt 6 | . 6 Best Kill Streak 3 | 3 3 Combat Bots Only 3 | . 3 Max Kills in Single Turn 1 | 1 1 Gunslinging . | . . Exploded 1 | . 1 Melee . | . . Uniques/NPCs Destroyed . | . . Combat | -11 -10 -------- Run | Yrd Mat Hostile Shots Fired 56 | . 56 Missed 13 | . 13 Hits 43 | . 43 Projectile 43 | . 43 Critical Strikes 1 | . 1 Damage Taken 1341 | . 1341 Core 253 | . 253 Absorbed by Shields . | . . Regen/Repaired (Parts) 130 | . 130 Core Remaining (%) 100 | 100 . Volleys Fired 46 | 4 42 Largest 2 | 2 2 Hottest 140 | 70 140 Shots Fired 72 | 8 64 Gun 49 | 8 41 Cannon 6 | . 6 Launcher . | . . Special 17 | . 17 Kinetic 29 | 4 25 Thermal 35 | 4 31 Explosive . | . . Electromagnetic 8 | . 8 Robot Hit Streak 8 | 3 8 Robot Miss Streak 5 | 1 5 Penetration Max . | . . Secondary Targets . | . . Shots Hit Robots 35 | 4 31 Core Hits 18 | 4 14 Critical Kills . | . . Critical Parts Destroyed . | . . Critical Strikes 2 | 1 1 Burn 2 | 1 1 Melee Attacks . | . . Impact . | . . Slashing . | . . Piercing . | . . Sneak Attacks . | . . Combat Hostiles . | . . Follow-up Attacks . | . . Damage Inflicted 474 | 39 435 Guns 270 | 39 231 Cannons 69 | . 69 Explosions 63 | . 63 Melee . | . . Ramming . | . . Kinetic 143 | 14 129 Thermal 279 | 25 254 Explosive . | . . Electromagnetic 52 | . 52 Impact . | . . Slashing . | . . Piercing . | . . Highest Corruption 9 | . 9 Average Corruption 5 | . 5 Corruption Purged . | . . Corruption Blocked . | . . Effects 4 | . 4 Message Errors 2 | . 2 Matter Fused 1 | . 1 Heat Flow Errors 1 | . 1 Overload Shots . | . . Overflow Damage . | . . Projectiles . | . . Explosions . | . . Melee . | . . Knockbacks . | . . Impact . | . . Kinetic . | . . Secondary . | . . Self-Inflicted Damage 21 | . 21 Shots 1 | . 1 Rammed . | . . Targets Rammed . | . . Kicked . | . . Crushed . | . . Highest Temperature 320 | 60 320 Average Temperature 92 | 30 97 Received Heat Transfer 162 | . 162 Effects 2 | . 2 Energy Bleed 1 | . 1 Interference 1 | . 1 Siege Activations . | . . Martial Activations . | . . Shielding Activations . | . . Robots Disrupted . | . . Combat Hostiles . | . . Robots Corrupted . | . . Combat Hostiles . | . . Parts Fried . | . . Impact Corruptions . | . . Robots Melted . | . . Combat Hostiles . | . . Parts Melted 1 | . 1 Heat Transferred 768 | 148 620 Parts Sabotaged . | . . Parts Stolen . | . . Parts Stripped . | . . Power Chain Reactions 1 | . 1 Alert | -11 -10 ------- Run | Yrd Mat Maximum Alert Level . | . . Low Security (%) 100 | 100 100 Level 1 . | . . Level 2 . | . . Level 3 . | . . Level 4 . | . . Level 5 . | . . High Security . | . . Max Security . | . . Peak Influence 74 | 10 74 Initial . | . . Average 16 | 1 18 Influence Increases 340 | 15 325 Destroy 0b10 Robot/C 180 | . 180 Destroy 0b10 Robot/NC 15 | 15 . Destroy Leader 40 | . 40 Successful Hack 3 | . 3 Disable Machine 15 | . 15 Destroy Structure 12 | . 12 Lose Combat Pursuer 75 | . 75 Influence Decreases 323 | 15 308 Time Decay 243 | 15 228 Lost Part 80 | . 80 Squads Dispatched 2 | . 2 Investigation 1 | . 1 Extermination . | . . Reinforcement 1 | . 1 Assault . | . . Garrison . | . . Intercept . | . . Searches Triggered . | . . Construction Impeded . | . . Haulers Reinforced . | . . Active Scanning Responses . | . . Cargo Convoy Interrupts . | . . Stealth | -11 -10 --------- Run | Yrd Mat Distress Signals 2 | . 2 Communications Jammed . | . . Distress Signals . | . . Times Spotted 15 | . 15 Peak Tracking Total 3 | . 3 Tactical Retreats 3 | . 3 Traps | -11 -10 ------- Run | Yrd Mat Traps Triggered 1 | . 1 Indirectly . | . . Trap Hack Attempts . | . . Triggered . | . . Disarmed . | . . Reprogrammed . | . . Reused . | . . Traps Extracted . | . . Installed . | . . Triggered . | . . Machines | -11 -10 ---------- Run | Yrd Mat Machines Disabled 1 | . 1 Max in Single Turn 1 | . 1 Machines Repaired . | . . Machines Dismantled . | . . Machines Sabotaged . | . . Overloaded Fab Kills . | . . Hacking | -11 -10 --------- Run | Yrd Mat Machines Accessed 2 | . 2 Terminals 1 | . 1 Fabricators . | . . Repair Stations 1 | . 1 Recycling Units . | . . Scanalyzers . | . . Garrison Access . | . . Total Hacks 6 | . 6 Successful 3 | . 3 Failed 3 | . 3 Catastrophic . | . . Database Lockouts . | . . Manual 1 | . 1 Terminals 2 | . 2 Fabricators . | . . Repair Stations 4 | . 4 Recycling Units . | . . Scanalyzers . | . . Garrison Access . | . . Terminal Hacks . | . . Fabricator Hacks . | . . Repair Station Hacks 3 | . 3 Scan Component 2 | . 2 Repair 1 | . 1 Recycling Unit Hacks . | . . Scanalyzer . | . . Garrison Access Hacks . | . . Unauthorized Hacks . | . . Terminals . | . . Fabricators . | . . Repair Stations . | . . Recycling Units . | . . Scanalyzers . | . . Garrison Access . | . . Data Cores Recovered . | . . Used . | . . Hacking Detections 2 | . 2 Full Trace Events . | . . Feedback Events . | . . Feedback Blocked . | . . Robot Schematics Acquired . | . . Robots Built . | . . Authchips . | . . Time . | . . Total Robot Build Rating . | . . Part Schematics Acquired . | . . Parts Built . | . . Authchips . | . . Time . | . . Total Part Build Rating . | . . Part Studies Acquired . | . . Parts Repaired 1 | . 1 Time 26 | . 26 Parts Recycled . | . . Recycled Matter . | . . Retrieved Matter . | . . Retrieved Components . | . . Parts Scanalyzed . | . . Part Schematics Acquired . | . . Parts Damaged . | . . Bothacking | -11 -10 ------------ Run | Yrd Mat Used RIF Installer . | . . Robots Hacked . | . . Non-combat . | . . Combat . | . . Robot Hacks Applied . | . . Relay Couplers Released . | . . Fabnet Peak Effective % . | . . Robots Rewired . | . . Allies Hacked . | . . Hacks Repelled . | . . Allies | -11 -10 -------- Run | Yrd Mat Total Allies . | . . Largest Group . | . . Highest-Rated Group . | . . Highest-Rated Ally . | . . Total Orders . | . . Ally Attacks . | . . Total Damage . | . . Kills . | . . Allies Corrupted . | . . Allies Melted . | . . Intel | -11 -10 ------- Run | Yrd Mat Active Infowar (turns) 1016 | 70 946 Sensors 617 | . 617 Terrain 233 | 69 164 Seismic 1016 | 70 946 Robot Analysis Total . | . . Derelict Logs Recovered . | . . Drone Launches . | . . Drone Recoveries . | . . Exploration | -11 -10 ------------- Run | Yrd Mat Turns Passed 1091 | 144 947 Spaces Moved 364 | 75 289 Core 15 | 5 10 Treads 340 | 70 270 Legs 9 | . 9 Wheels . | . . Hover . | . . Flight . | . . Fastest Speed 50 | 50 120 Average Speed 159 | 152 161 Slowest Speed 250 | 160 250 Overloaded Moves . | . . Propulsion Burnouts . | . . Robots Hopped . | . . Potential Cave-ins . | . . Cave-ins Triggered 3 | . 3 Exploration Rate (%) 23 | 5 42 Regions Visited 1 Branch Regions . Pre-discovered Areas . | . . Known Exits Taken . | . . Unknown Exits Taken 1 | 1 . Scrap Searched . | . . Spaces Dug 9 | . 9 Terrain Destroyed 14 | . 14 Melee . | . . Projectile 12 | . 12 AOE 2 | . 2 Terrain Rammed . | . . Walls Destroyed . | . . Machines Disabled . | . . Actions | -11 -10 --------- Run | Yrd Mat Total 777 | 97 680 Wait 318 | . 318 Move 363 | 74 289 Hop . | . . Pick Up 20 | 11 9 Fast Attach 2 | . 2 Attach 12 | 7 5 Detach . | . . Swap 7 | 1 6 Drop 9 | . 9 Fire 46 | 4 42 Melee . | . . Ram . | . . Kick . | . . Crush . | . . Escape Stasis . | . . Rewire . | . . Trap . | . . Miscellaneous . | . . Route ------- -11/Scrapyard -10/Materials (discovered 1 exit: [*Mat]) History --------- Turn | Location | Event 37 | -11/Scrapyard | Discovered new exit (range 13) 145 | -11/Scrapyard | Entered Materials 331 | -10/Materials | Build established: Mutant 561 | -10/Materials | Discovered new exit (range 15) 649 | -10/Materials | Repaired Lgt. Treads 927 | -10/Materials | Crushed by falling debris 1091 | -10/Materials | Crushed by falling debris 1091 | -10/Materials | Core integrity fell below 50% 1091 | -10/Materials | Core integrity fell below 20% 1093 | -10/Materials | Crushed by falling debris 1093 | -10/Materials | Smashed by cave-in Last Messages --------------- System corrupted: Matter fused (-8). Acquired Aluminum Leg. Dropped Lgt. Assault Rifle. Dropped Beam Cannon. Acquired Sml. Laser. Dropped EM Pulse Gun. System corrupted: Heat flow error (+199). Acquired Beam Cannon. The unstable cave ceiling collapses. Crushed by falling debris. Mining Laser destroyed. System corrupted by crushing effect (+1). Ion Engine destroyed. System corrupted by crushing effect (+1). Seismic Detector destroyed. System corrupted by crushing effect (+2). The unstable cave ceiling collapses. Crushed by falling debris. Aluminum Leg destroyed. System corrupted by crushing effect (+3). Map ----- +----------------------------------------------------+ | # ## # | | ####+##########+########## # | | # ???# #????## ##### | | # ???# #?????# | | ? ??## #?????# | | ? ?? / """ #?????# """ | | ? ??### """"" #?????# """ | | ?? ????# """"" #?????# """ | | ??! !????# #?????# """ | | ??# #????# [ #?????# """ | | ??# #????# =% #?????# | | ??# #????##### #+######## | | ??# #######"##"# """ + """ | | ??# # "T" # """"" # """ | | ??# # """ # """"" ? ?"" | | ??# # ! """ # """""???????" | | ??# / !! """ # """ ???????" | | ??# # * ! # ????????? | | ?## ############ ?????????? | | ?# # #?# ????????? | | ?# #!""" * #?# ????????? | | ?# T +[""" #?######+##????????? | | ?# # """ #??????? #?????????? | | ?# #*[[ #???????? ?????????? | | ?### ###########???????? ????????? | | ???# #???#@#????????????? ????????? | | ???# #???###??????????????????????? | | ???# #????????????????????????????? | | ???# #????????????????????????????? | | ???# #????????????????????????????? | | ???# #????????????????????????????? | | ???# ?????????????????????????????? | | ???# ?????????????????????????????? | | ??????????????????????????????????? | | ??????????????????????????????????? | | ??????????????????????????????????? | | ??????????????????????????????????? | | ??????????????????????????????????? | | ??????????????????????????????????? | | ??????????????????????????????????? | | ??????????????????????????????????? | | ??????????????????????????????????? | | ??????????????????????????????????? | | ??????????????????????????????????? | | ??????????????????????????????????? | | ??????????????????????????????????? | | ??????????????????????????????????? | | ??????????????????????????????????? | | ??????????????????????????????????? | | ??????????????????????????????????? | +----------------------------------------------------+ Best States ------------- Heat Dissipation 25 Energy Generation 10 Energy Capacity 250 Matter Stores 171 Matter Capacity 300 Sight Range 16 Robot Scan Range 14 Terrain Scan Range 16 Terrain Scan Density 10 Armor Coverage 150 Evasion (%) 40 Recoil Reduction 2 Item Schematics ----------------- None Robot Schematics ------------------ None Fabricated ------------ Nothing Repaired ---------- Lgt. Treads | 7% | -10/Materials Studied --------- None Alien Tech Used ----------------- None Achievements -------------- None Challenges ------------ None Game ------ Seed SkeletonSpectralRipteeth Manual? 0 Play Time 00:19:32 Cumulative 9.2 hours Start 2026.01.19 @ 14:19:35 End 2026.01.20 @ 16:51:41 Sessions 5 Manual Loads 0 Difficulty Rogue Special Mode None Game No. 15 Rogue 15 Adventurer 0 Explorer 0 Win Type - Total 0 Types 0/0/0/0/0/0/0/0/0/0 Lore% 4 Gallery% 9 Achievement% 8 Wizard Run 0 Options --------- Layout 1 ASCII 0 Keyboard 0 Movement Mouse Keybinds 0 Fullscreen 1 Font 24/Smallcaps Map View 50x35 Zoom Use 0% Tactical HUD 0 Map Filters NONE Filters NONE Steam 1 RUN: ab974f5f-b426-4b00-8e43-fc69a965ebce